Cogmind - Beta 17.1 @@@ ROGUE MODE // 2026.08.17 @ 07:54:52 // Winter2019/RPGLIKE Player: KTG-V3 Result: Destroyed by H-55 Commando with Gauss Rifle Performance ------------- Evolutions (3) 1500 Regions Visited (6) 1200 Robots Destroyed (226) 1130 Value Destroyed (8417) 8417 Prototype IDs (7) 140 Alien Tech Used (0) 0 Bonus (5462) 5462 TOTAL SCORE: 17849 Bonus ------- Triggered High Security 500 High Alert Combat Kills 4629 Follower Combat Kills 33 Aligned with FarCom 300 Cogmind --------- Core Integrity 0/1900 Matter 124/500 Energy 310/310 System Corruption 5% Temperature Cool (0) Movement Treading (160) Location -7/Factory Parts ------- > --- POWER (1) -------- Heavy Deuterium Engine > --- PROPULSION (2) --- Medium Treads Medium Treads > --- UTILITY (1) ------ Improved Cooling System > --- WEAPON (9) ------- Plasma Cannon Improved Assault Rifle Improved Assault Rifle Improved Assault Rifle Minigun Enhanced Autogun Enhanced Autogun Enhanced Autogun Gauss Cannon > --- INVENTORY (3) ---- High-powered Tractor Beam Ion Cannon Peak State ------------ > --- POWER ------------ Heavy Deuterium Engine > --- PROPULSION ------- Medium Treads Medium Treads > --- UTILITY ---------- Improved Cooling System > --- WEAPON ----------- Plasma Cannon Improved Assault Rifle Improved Assault Rifle Improved Assault Rifle Minigun Enhanced Autogun Enhanced Autogun Enhanced Autogun Gauss Cannon > --- INVENTORY -------- High-powered Tractor Beam Ion Cannon [Rating: 49] Favorites ----------- Power Improved Ion Engine Engine Improved Ion Engine Propulsion Light Treads Treads Light Treads Utility Improved Heat Sink Device Improved Heat Sink Weapon Improved Assault Rifle Energy Gun Beamcaster Energy Cannon Ion Cannon Ballistic Gun Improved Assault Rifle Ballistic Cannon Gauss Cannon Impact Weapon Hammer Build | -11 -10 -10 -10 -9 -8 -7 ------- Run | Yrd Mat Min Exi Min Mat Fac Slots Evolved 9 | 4 . 1 . . 3 1 Power . | . . . . . . . Propulsion 1 | 1 . . . . . . Utility . | . . . . . . . Weapon 8 | 3 . 1 . . 3 1 Parts Attached 42 | 7 12 3 . . 15 5 Power 7 | 1 2 . . . 2 2 Engine 7 | 1 2 . . . 2 2 Core . | . . . . . . . Reactor . | . . . . . . . Propulsion 6 | 2 . 1 . . 3 . Treads 6 | 2 . 1 . . 3 . Leg . | . . . . . . . Wheel . | . . . . . . . Hover . | . . . . . . . Flight . | . . . . . . . Utility 4 | 1 1 . . . 1 1 Device 4 | 1 1 . . . 1 1 Storage . | . . . . . . . Processor . | . . . . . . . Hackware . | . . . . . . . Protection . | . . . . . . . Artifact . | . . . . . . . Weapon 25 | 3 9 2 . . 9 2 Energy Gun 7 | 2 1 1 . . 3 . Energy Cannon 4 | . 1 . . . 2 1 Ballistic Gun 12 | 1 6 1 . . 4 . Ballistic Cannon 1 | . . . . . . 1 Launcher . | . . . . . . . Special Weapon . | . . . . . . . Impact Weapon 1 | . 1 . . . . . Slashing Weapon . | . . . . . . . Piercing Weapon . | . . . . . . . Special Melee Weapon . | . . . . . . . Unidentified Prototypes 7 | . 1 . . . 5 1 Parts Lost . | . . . . . . . Power . | . . . . . . . Propulsion . | . . . . . . . Utility . | . . . . . . . Weapon . | . . . . . . . Highest Loss Streak . | . . . . . . . To Critical Strikes . | . . . . . . . Average Backups . | . . . . . . 1 Power . | . . . . . . . Propulsion . | . . . . . . . Utility . | . . . . . . . Weapon . | . . . . . . . Tool/Special . | . . . . . . . Unused Backups 1 | . . 1 . . . . Power . | . . . . . . . Propulsion 1 | . . 1 . . . . Utility . | . . . . . . . Weapon . | . . . . . . . Tool/Special . | . . . . . . . Average Slot Usage (%) 98 | . 98 100 53 100 99 99 Engine 9 | . 12 11 11 11 9 7 Treads 19 | . 25 23 22 22 18 15 Device 9 | . 12 11 11 11 9 7 Energy Gun 5 | . 11 7 1 11 3 . Energy Cannon 4 | . 5 1 . . 5 7 Ballistic Gun 45 | . 28 43 7 44 52 54 Peak Build Rating 49 | 9 18 26 26 26 42 49 Average Rating 30 | 5 12 23 11 26 34 46 On Entrance 20 | . 9 17 26 26 26 42 Avg Prop Armor Cover (%) . | . . . . . . . Naked Turns . | . . . . . . . Heaviest Build 48 | 9 20 25 25 25 43 48 Greatest Support 61 | 40 45 47 47 47 61 61 Greatest Overweight (x) . | . . . . . . . Average Overweight (x) . | . . . . . . . Largest Inventory Capacity 3 | . 2 2 2 2 2 3 Average Capacity 1 | . . 2 2 2 2 2 Most Carried 3 | . 2 2 . 2 2 3 Average Carried 1 | . . . . 1 1 2 Final Capacity 3 | . 2 2 2 2 2 3 Final Carried 2 | . 1 . . 2 2 2 Class Distribution -------------------- 42% | Gunner 33% | Executioner 17% | Hacker-Executioner 3% | Skirmisher Dominant Class ---------------- Gunner | -10/Materials Gunner | -10/Mines Mutant | -10/Exiles Gunner | -9/Mines Executioner | -8/Materials Hacker-Executioner | -7/Factory Resources | -11 -10 -10 -10 -9 -8 -7 ----------- Run | Yrd Mat Min Exi Min Mat Fac Matter Collected 5975 | 282 326 85 . 260 1816 3206 Remotely 1280 | . . . . . 125 1155 Salvage Created 8628 | 179 1185 36 . 320 2674 4234 Parts 479 | 6 82 7 . 31 162 191 Haulers Intercepted 9 | . 2 . . . 5 2 Recyclers Shooed 2 | 1 1 . . . . . Parts Field Recycled . | . . . . . . . Retrieved Matter . | . . . . . . . Parts Self-Destructed . | . . . . . . . Prevented . | . . . . . . . Parts Restored . | . . . . . . . Kills | -11 -10 -10 -10 -9 -8 -7 ------- Run | Yrd Mat Min Exi Min Mat Fac Combat Hostiles Destroyed 151 | . 17 1 . 8 50 75 Guns 144 | . 13 1 . 8 48 74 Cannons 6 | . 3 . . . 2 1 AOE 1 | . 1 . . . . . Classes Destroyed 18 | 2 8 . . . 5 3 Worker 15 | . 4 . . 1 5 5 Builder 17 | . 6 . . 3 3 5 Tunneler 8 | 3 2 1 . 1 . 1 Hauler 9 | . 2 . . . 5 2 Recycler 13 | 1 2 . . 2 5 3 Mechanic 3 | . 1 . . . . 2 Operator 3 | . 2 . . . 1 . Watcher 7 | . 3 . . . . 4 Swarmer 17 | . 6 . . 7 4 . Grunt 71 | . 11 1 . 1 30 28 Brawler 8 | . . . . . 2 6 Duelist 11 | . . . . . 3 8 Protector 5 | . . . . . 2 3 Sentry 9 | . . . . . 8 1 Specialist 2 | . . . . . . 2 Hunter 18 | . . . . . . 18 Programmer 9 | . . . . . . 9 Heavy 1 | . . . . . 1 . Best Kill Streak 17 | 3 9 1 . 5 6 17 Combat Bots Only 17 | . 6 1 . 4 5 17 Max Kills in Single Turn 3 | 1 2 1 . 2 3 3 Gunslinging 2 | . . . . 1 2 1 Exploded 1 | . 1 . . . . . Melee . | . . . . . . . Uniques/NPCs Destroyed . | . . . . . . . Combat | -11 -10 -10 -10 -9 -8 -7 -------- Run | Yrd Mat Min Exi Min Mat Fac Hostile Shots Fired 533 | . 51 1 . 17 125 339 Missed 167 | . 17 1 . 4 44 101 Hits 366 | . 34 . . 13 81 238 Melee 11 | . . . . . . 11 Projectile 355 | . 34 . . 13 81 227 Critical Strikes 22 | . . . . . 5 17 Damage Taken 6172 | . 372 39 . 144 1569 4048 Core 4926 | . 298 31 . 112 1259 3226 Absorbed by Shields . | . . . . . . . Redirected to Core 4383 | . 235 31 . 103 1120 2894 Core Remaining (%) 100 | 100 . . . 100 100 . Volleys Fired 869 | 12 183 21 . 19 309 325 Largest 8 | 3 4 4 . 5 7 8 Hottest 229 | 100 140 94 . 169 204 229 Shots Fired 2300 | 36 356 24 . 71 699 1114 Gun 1842 | 36 257 7 . 71 559 912 Cannon 458 | . 99 17 . . 140 202 Launcher . | . . . . . . . Special . | . . . . . . . Kinetic 1525 | 12 103 4 . 51 430 925 Thermal 623 | . 125 20 . 20 269 189 Explosive . | . . . . . . . Electromagnetic 152 | 24 128 . . . . . Robot Hit Streak 72 | 7 16 18 . 18 61 72 Robot Miss Streak 5 | 3 5 . . 3 2 2 Penetration Max . | . . . . . . . Secondary Targets 62 | . 2 . . 3 18 39 Max Gunslinging Chain 2 | . 1 . . 1 2 2 Shots Hit Robots 1201 | 18 111 2 . 32 348 690 Core Hits 500 | 5 54 2 . 15 131 293 Critical Kills 4 | . 1 . . . 1 2 Critical Parts Destroyed 8 | . . . . . 3 5 Critical Strikes 19 | . 3 . . 1 7 8 Burn 4 | . . . . 1 3 . Destroy 12 | . 1 . . . 4 7 Blast 1 | . . . . . . 1 Corrupt 2 | . 2 . . . . . Melee Attacks . | . . . . . . . Impact . | . . . . . . . Slashing . | . . . . . . . Piercing . | . . . . . . . Sneak Attacks . | . . . . . . . Combat Hostiles . | . . . . . . . Follow-up Attacks . | . . . . . . . Damage Inflicted 23507 | 310 1904 33 . 649 7149 13462 Guns 21550 | 198 1137 16 . 649 6600 12950 Cannons 778 | . 338 17 . . 137 286 Explosions 1179 | 112 429 . . . 412 226 Melee . | . . . . . . . Ramming . | . . . . . . . Kinetic 19601 | 52 396 16 . 355 5760 13022 Thermal 2550 | 112 740 17 . 294 977 410 Explosive 634 | . 222 . . . 412 . Electromagnetic 722 | 146 546 . . . . 30 Impact . | . . . . . . . Slashing . | . . . . . . . Piercing . | . . . . . . . Highest Corruption 5 | . 2 2 2 2 . 5 Average Corruption 2 | . 2 2 2 2 . 2 Corruption Purged . | . . . . . . . Corruption Blocked . | . . . . . . . Effects 55 | . 10 17 3 9 . 16 Message Errors 14 | . 2 7 1 . . 4 Matter Fused 12 | . 2 4 . 3 . 3 Heat Flow Errors 10 | . 2 3 1 1 . 3 Energy Discharges 4 | . 1 1 . 1 . 1 Data Loss (minor) 5 | . 1 2 1 1 . . Data Loss (major) 1 | . 1 . . . . . Misfires 2 | . 1 . . 1 . . Alerts 1 | . . . . 1 . . Weapon Failures 6 | . . . . 1 . 5 Overload Shots . | . . . . . . . Overflow Damage 137 | . 20 . . . 40 77 Projectiles 44 | . 15 . . . . 29 Explosions 93 | . 5 . . . 40 48 Melee . | . . . . . . . Knockbacks . | . . . . . . . Impact . | . . . . . . . Kinetic . | . . . . . . . Secondary . | . . . . . . . Self-Inflicted Damage 181 | . 30 39 . 39 52 21 Shots 6 | . 2 1 . 1 1 1 Rammed . | . . . . . . . Targets Rammed . | . . . . . . . Kicked . | . . . . . . . Crushed . | . . . . . . . Highest Temperature 395 | 121 187 207 229 144 237 395 Average Temperature 43 | 50 36 92 116 38 29 71 Received Heat Transfer 2004 | . 132 . . . 675 1197 Effects 3 | . . . . . 3 . Energy Bleed 1 | . . . . . 1 . Interference 2 | . . . . . 2 . Siege Activations . | . . . . . . . Martial Activations . | . . . . . . . Shielding Activations . | . . . . . . . Robots Disrupted 2 | . . . . . . 2 Combat Hostiles . | . . . . . . . Robots Corrupted . | . . . . . . . Combat Hostiles . | . . . . . . . Parts Fried 2 | . 2 . . . . . Impact Corruptions . | . . . . . . . Robots Melted . | . . . . . . . Combat Hostiles . | . . . . . . . Parts Melted 1 | . 1 . . . . . Heat Transferred 4565 | 100 1403 37 . 592 1924 509 Parts Sabotaged . | . . . . . . . Parts Stolen . | . . . . . . . Parts Stripped . | . . . . . . . Power Chain Reactions 9 | 3 4 . . . 2 . Alert | -11 -10 -10 -10 -9 -8 -7 ------- Run | Yrd Mat Min Exi Min Mat Fac Maximum Alert Level 5 | . 2 1 . . 4 5 Low Security (%) 30 | 100 25 98 . 100 7 . Level 1 14 | . 52 1 . . 13 . Level 2 9 | . 21 . . . 15 . Level 3 13 | . . . . . 17 32 Level 4 24 | . . . . . 46 32 Level 5 1 | . . . . . . 8 High Security 5 | . . . . . . 26 Max Security . | . . . . . . . Sterilizations 1 | . . . . . 1 . Peak Influence 3318 | 10 496 204 . 85 1586 3318 Initial 719 | . . 189 . . . 719 Average 714 | 2 291 35 . 28 898 1503 Influence Increases 6935 | 20 1041 107 . 289 2326 3152 Destroy 0b10 Robot/C 2940 | . 340 20 . 160 980 1440 Destroy 0b10 Robot/NC 400 | 20 110 5 . 35 105 125 Destroy Leader 612 | . 80 10 . 20 240 262 Allied During Kill 4 | . . . . . 4 . Successful Hack 3 | . . . . . . 3 Disable Machine 1950 | . 330 60 . 60 630 870 Destroy Structure 831 | . 181 12 . 14 352 272 Lose Combat Pursuer 195 | . . . . . 15 180 Influence Decreases 3617 | 20 554 594 . 289 743 1417 Entered New Map 1162 | . . 298 . . . 864 Time Decay 2435 | 20 554 296 . 289 723 553 Lost Ally 20 | . . . . . 20 . Squads Dispatched 47 | . 4 1 . . 12 30 Investigation 4 | . 2 1 . . 1 . Extermination 2 | . . . . . . 2 Reinforcement 10 | . 2 . . . 5 3 Assault 30 | . . . . . 5 25 Garrison 1 | . . . . . 1 . Intercept . | . . . . . . . Searches Triggered . | . . . . . . . Construction Impeded 3 | . . . . . 2 1 Haulers Reinforced 1 | . . . . . . 1 Active Scanning Responses . | . . . . . . . Cargo Convoy Interrupts 1 | . . . . . . 1 Stealth | -11 -10 -10 -10 -9 -8 -7 --------- Run | Yrd Mat Min Exi Min Mat Fac Distress Signals 9 | . 3 . . . 1 5 Communications Jammed . | . . . . . . . Distress Signals . | . . . . . . . Times Spotted 223 | . 31 1 . 8 59 124 Peak Tracking Total 11 | . 4 1 . 3 5 11 Tactical Retreats 7 | . . . . . 1 6 Traps | -11 -10 -10 -10 -9 -8 -7 ------- Run | Yrd Mat Min Exi Min Mat Fac Traps Triggered 2 | . 1 . . . 1 . Indirectly . | . . . . . . . Trap Hack Attempts . | . . . . . . . Triggered . | . . . . . . . Disarmed . | . . . . . . . Reprogrammed . | . . . . . . . Reused . | . . . . . . . Traps Extracted . | . . . . . . . Installed . | . . . . . . . Triggered . | . . . . . . . Machines | -11 -10 -10 -10 -9 -8 -7 ---------- Run | Yrd Mat Min Exi Min Mat Fac Machines Disabled 130 | . 22 4 . 4 42 58 Max in Single Turn 6 | . 3 1 . 1 2 6 Machines Repaired . | . . . . . . . Machines Dismantled . | . . . . . . . Machines Sabotaged . | . . . . . . . Overloaded Fab Kills . | . . . . . . . Hacking | -11 -10 -10 -10 -9 -8 -7 --------- Run | Yrd Mat Min Exi Min Mat Fac Machines Accessed 5 | . 1 1 1 . 1 1 Terminals 2 | . 1 . . . . 1 Fabricators . | . . . . . . . Repair Stations . | . . . . . . . Recycling Units 1 | . . . . . 1 . Scanalyzers . | . . . . . . . Garrison Access . | . . . . . . . Total Hacks 11 | . 1 1 4 . 2 3 Successful 8 | . 1 1 4 . . 2 Failed 3 | . . . . . 2 1 Catastrophic . | . . . . . . . Database Lockouts . | . . . . . . . Manual . | . . . . . . . Terminals 4 | . 1 . . . . 3 Fabricators . | . . . . . . . Repair Stations . | . . . . . . . Recycling Units 2 | . . . . . 2 . Scanalyzers . | . . . . . . . Garrison Access . | . . . . . . . Terminal Hacks 8 | . 1 1 4 . . 2 Record 4 | . . . 4 . . . Open Door 1 | . . 1 . . . . Branch Access Points 1 | . . . . . . 1 Locate Traps 2 | . 1 . . . . 1 Fabricator Hacks . | . . . . . . . Repair Station Hacks . | . . . . . . . Recycling Unit Hacks . | . . . . . . . Scanalyzer . | . . . . . . . Garrison Access Hacks . | . . . . . . . Unauthorized Hacks . | . . . . . . . Terminals . | . . . . . . . Fabricators . | . . . . . . . Repair Stations . | . . . . . . . Recycling Units . | . . . . . . . Scanalyzers . | . . . . . . . Garrison Access . | . . . . . . . Data Cores Recovered . | . . . . . . . Used . | . . . . . . . Hacking Detections 2 | . 1 . . . 1 . Full Trace Events 1 | . . . . . 1 . Feedback Events . | . . . . . . . Feedback Blocked . | . . . . . . . Robot Schematics Acquired . | . . . . . . . Robots Built . | . . . . . . . Authchips . | . . . . . . . Time . | . . . . . . . Total Robot Build Rating . | . . . . . . . Part Schematics Acquired . | . . . . . . . Parts Built . | . . . . . . . Authchips . | . . . . . . . Time . | . . . . . . . Total Part Build Rating . | . . . . . . . Part Studies Acquired . | . . . . . . . Parts Repaired . | . . . . . . . Time . | . . . . . . . Parts Recycled . | . . . . . . . Recycled Matter . | . . . . . . . Retrieved Matter . | . . . . . . . Retrieved Components . | . . . . . . . Parts Scanalyzed . | . . . . . . . Part Schematics Acquired . | . . . . . . . Parts Damaged . | . . . . . . . Bothacking | -11 -10 -10 -10 -9 -8 -7 ------------ Run | Yrd Mat Min Exi Min Mat Fac Used RIF Installer . | . . . . . . . Robots Hacked . | . . . . . . . Non-combat . | . . . . . . . Combat . | . . . . . . . Robot Hacks Applied . | . . . . . . . Relay Couplers Released . | . . . . . . . Fabnet Peak Effective % . | . . . . . . . Robots Rewired . | . . . . . . . Allies Hacked . | . . . . . . . Hacks Repelled . | . . . . . . . Allies | -11 -10 -10 -10 -9 -8 -7 -------- Run | Yrd Mat Min Exi Min Mat Fac Total Allies 3 | . . . . 3 . . Largest Group 3 | . . . . 3 3 . Highest-Rated Group 40 | . . . . 40 40 . Highest-Rated Ally 16 | . . . . 16 16 . Total Orders . | . . . . . . . Ally Attacks 17 | . . . . . 17 . Total Damage 146 | . . . . . 146 . Kills 1 | . . . . . 1 . Allies Corrupted . | . . . . . . . Allies Melted . | . . . . . . . Intel | -11 -10 -10 -10 -9 -8 -7 ------- Run | Yrd Mat Min Exi Min Mat Fac Active Infowar (turns) 240 | 19 221 . . . . . Terrain 240 | 19 221 . . . . . Robot Analysis Total . | . . . . . . . Derelict Logs Recovered 3 | . . 1 . 2 . . Drone Launches . | . . . . . . . Drone Recoveries . | . . . . . . . Exploration | -11 -10 -10 -10 -9 -8 -7 ------------- Run | Yrd Mat Min Exi Min Mat Fac Turns Passed 11046 | 114 1851 1467 352 913 4171 2178 Spaces Moved 4563 | 41 745 860 226 536 1429 726 Core 3 | 3 . . . . . . Treads 4560 | 38 745 860 226 536 1429 726 Legs . | . . . . . . . Wheels . | . . . . . . . Hover . | . . . . . . . Flight . | . . . . . . . Fastest Speed 50 | 50 160 152 152 152 152 160 Average Speed 155 | 151 160 152 152 152 154 160 Slowest Speed 160 | 160 160 160 152 152 160 160 Overloaded Moves . | . . . . . . . Propulsion Burnouts . | . . . . . . . Robots Hopped . | . . . . . . . Potential Cave-ins . | . . . . . . . Cave-ins Triggered . | . . . . . . . Exploration Rate (%) 65 | 4 98 98 47 99 95 20 Regions Visited 6 Branch Regions 3 Pre-discovered Areas 4 | . . 1 1 2 . . Known Exits Taken . | . . . . . . . Unknown Exits Taken 6 | 1 1 1 1 1 1 . Scrap Searched 3 | . . 1 . 2 . . Spaces Dug . | . . . . . . . Terrain Destroyed 951 | 11 214 14 . 14 398 300 Melee . | . . . . . . . Projectile 9 | . . . . . 9 . AOE 942 | 11 214 14 . 14 389 300 Terrain Rammed . | . . . . . . . Walls Destroyed . | . . . . . . . Machines Disabled . | . . . . . . . Actions | -11 -10 -10 -10 -9 -8 -7 --------- Run | Yrd Mat Min Exi Min Mat Fac Total 7142 | 63 1120 991 235 594 2957 1182 Wait 1371 | 4 148 89 . 20 1066 44 Move 4557 | 40 744 859 225 535 1428 726 Hop . | . . . . . . . Pick Up 28 | . . 3 . 4 17 4 Fast Attach 33 | 7 12 1 5 . 6 2 Attach 4 | . . 1 . . 3 . Detach 3 | . 1 . . . 2 . Swap 35 | . 6 4 . . 14 11 Drop 59 | . 13 6 5 2 26 7 Fire 869 | 12 183 21 . 19 309 325 Melee . | . . . . . . . Ram . | . . . . . . . Kick . | . . . . . . . Crush . | . . . . . . . Escape Stasis . | . . . . . . . Rewire . | . . . . . . . Trap . | . . . . . . . Miscellaneous 183 | . 13 7 . 14 86 63 Route ------- -11/Scrapyard -10/Materials (discovered 5 exits: [*Mat x3] / *Min x2) -10/Mines (discovered 4 exits: [*Mat x2] / *Exi / [*Sub]) -10/Exiles -9/Mines (discovered 2 exits: *Mat x2) -8/Materials (discovered 3 exits: *Fac x3) -7/Factory (discovered 4 exits: Sto x2 / *Low x2) History --------- Turn | Location | Event 1 | -11/Scrapyard | Upgraded with Propulsion slot (x1) 1 | -11/Scrapyard | Upgraded with Weapon slot (x3) 4 | -11/Scrapyard | Discovered new exit (range 15) 115 | -11/Scrapyard | Entered Materials 300 | -10/Materials | Build established: Gunner 360 | -10/Materials | Discovered new exit (range 14) 544 | -10/Materials | Discovered new exit (range 15) 663 | -10/Materials | Reached level 2 1132 | -10/Materials | Discovered new exit (range 16) 1368 | -10/Materials | Discovered new exit (range 16) 1381 | -10/Materials | Reached level 3 1654 | -10/Materials | Discovered new exit (range 15) 1966 | -10/Materials | Entered Mines 2043 | -10/Mines | Learned location of Zion (-7) 2149 | -10/Mines | Met a Derelict shopkeep closing up shop 2375 | -10/Mines | Discovered new exit (range 5) 2391 | -10/Mines | Reached level 4 2468 | -10/Mines | Upgraded with Weapon slot (x1) 2521 | -10/Mines | Found a Scrap Suit stashed away for nefarious purposes 2553 | -10/Mines | Deemed a non-threat by the Exiles lab entrance 2553 | -10/Mines | Discovered new exit (range 5) 2726 | -10/Mines | Assembled infested the area 2913 | -10/Mines | Discovered new exit (range 9) 3110 | -10/Mines | Discovered new exit (range 6) 3433 | -10/Mines | Entered Exiles 3477 | -10/Exiles | Met 8R-AWN 3500 | -10/Exiles | Met EX-HEX 3542 | -10/Exiles | Met EX-BIN 3559 | -10/Exiles | Aligned with FarCom system 3561 | -10/Exiles | Given EX-Vault access code 3599 | -10/Exiles | Met EX-DEC 3730 | -10/Exiles | Build established: Mutant 3766 | -10/Exiles | Discovered new exit (range 14) 3785 | -10/Exiles | Entered Mines 3804 | -9/Mines | Met a Derelict bent on vengeance 3816 | -9/Mines | Discovered new exit (range 7) 3823 | -9/Mines | Received a Rocket Launcher from a helpful Derelict 3902 | -9/Mines | Discovered new exit (range 5) 3933 | -9/Mines | Reached level 5 4071 | -9/Mines | Build established: Skirmisher 4459 | -9/Mines | Found a hidden stash of uninstalled traps 4489 | -9/Mines | Build established: Gunner 4613 | -9/Mines | Assisted by bots powering up and referring to "LRC-V3" 4698 | -9/Mines | Entered Materials 4698 | -8/Materials | Accompanied by 3 allies 4700 | -8/Materials | Reached level 6 4841 | -8/Materials | Reached level 7 4932 | -8/Materials | Garrison activated, responded to threat 5067 | -8/Materials | Met 7R-MNS 5402 | -8/Materials | Reached level 8 5459 | -8/Materials | Upgraded with Weapon slot (x1) 5513 | -8/Materials | Discovered new exit (range 18) 5754 | -8/Materials | Build established: Executioner 5850 | -8/Materials | Reached level 9 5954 | -8/Materials | Upgraded with Weapon slot (x1) 6354 | -8/Materials | Discovered new exit (range 17) 6698 | -8/Materials | First assault squad dispatched 6725 | -8/Materials | Reached level 10 6931 | -8/Materials | Reached level 11 6960 | -8/Materials | Discovered new exit (range 8) 7259 | -8/Materials | Upgraded with Weapon slot (x1) 8371 | -8/Materials | Reached level 12 8840 | -8/Materials | Sterilization system engaged 8840 | -8/Materials | Non-combat units ordered to evacuate 8869 | -8/Materials | Entered Factory 8870 | -7/Factory | Caught up to 7R-MNS 8871 | -7/Factory | Reached level 13 9141 | -7/Factory | Identified exit to Storage 9141 | -7/Factory | Identified exit to Lower Caves 9299 | -7/Factory | Reached level 14 9424 | -7/Factory | Build established: Hacker-Executioner 9593 | -7/Factory | Upgraded with Weapon slot (x1) 9715 | -7/Factory | Reached level 15 9903 | -7/Factory | Cargo convoy interrupted 10069 | -7/Factory | First assault squad dispatched 10479 | -7/Factory | Reached level 16 10479 | -7/Factory | High security lockdown imminent 10500 | -7/Factory | Core integrity fell below 50% 10555 | -7/Factory | Destroyed 8 combat bots 10559 | -7/Factory | High security lockdown engaged 10654 | -7/Factory | Destroyed 11 combat bots 10734 | -7/Factory | Core integrity fell below 20% 10756 | -7/Factory | Reached level 17 10777 | -7/Factory | Destroyed 17 combat bots 10841 | -7/Factory | Destroyed 7 combat bots 11047 | -7/Factory | Destroyed by H-55 Commando with Gauss Rifle Last Messages --------------- 11018_ Acquired 81 matter. 11021_ G-50 Soldier destroyed. 11021_ Switching to secondary target: B-48 Gladiator. 11026_ Critical hit (Burn: +37). 11029_ ALERT: Heavy assault forces dispatched. 11029_ B-48 Gladiator destroyed. 11029_ Switching to secondary target: G-47 Trooper. 11029_ Destroyed Lgt. Nuclear Core. 11030_ W-25 Informer sends out distress signal. 11032_ G-47 Trooper destroyed. 11037_ Slug penetrates Wall. 11040_ L-41 Fighter destroyed. 11040_ Switching to secondary target: H-55 Commando. 11040_ H-55 Commando suffers critical hit (Destroy). 11040_ Destroyed Assault Rifle. 11042_ Penetrated by Slug. 11042_ W-25 Informer destroyed. 11044_ Protomatter-39 decays. 11044_ G-47 Trooper destroyed. 11044_ Switching to secondary target: H-55 Commando. Map ----- +----------------------------------------------------+ | ??????????????????????????# !!/%+ #????????? | | ??????????????????????????# !!= # """" #????????? | | ??????????????????????????# # """ #????????? | | ????#########?????????????## =## """" #????????? | | ????# """ #??????????????# *!## """" #????????? | | ????#*[ "R" #??????????????#%!%## #????????? | | ????#[ !" #??????????????# !!##########????????? | | ????# ![ ##########???###% ###???????????????? | | ????# !*[[* ##*!![ #???#![ #???????????????? | | ????#!!=!%= #*!=!*![#####/! #???????????????? | | !=####+#####*%= [ =%=!%!! T" #???????????????? | | !%!*%!][%*%!!%!*! =!=[|*!= " #???????????????? | | ########=#####=/==[%%%=/%==!* #???????????????? | | ???????#]#???#==*=!=%##### =! #????##+#???????? | | ???????#[#???#=[%=% #???#!! #???????? | | ???????#]#???###=*=################### #???????? | | ???????#]#?????#!=/#? ?????? ### ###?????? | | ???????#[#????##%=%+ """ ?????# #?????? | | ########"######=!!!#=""" ! ????# ##????? | | # ==% ##T[%%%=""" ????# = #????? | | # = ###%=!#* #???#l #?????? | | # ! #?#%[%#= g #???# =!! #?????? | | # =% #?#[%=+?! #???#l =! #?????? | | # #?#%%[#? #???# =! #?????? | | # ! ###*[*###############=[! #####?? | | # ;*m*!=%!=!*[@%=*= %h%**%= % | | # ###################################?? | | # #???????????????????????????????????? | | # #???????????????????????????????????? | | # ! #???????????????????????????????????? | | # !%% #???????????????????????????????????? | | #######/######???????????????????????????????????? | | ????? !%?????????????????????????????????????????? | | ????? !?????????????????????????????????????????? | | ????? %?????????????????????????????????????????? | | ????? ?????????????????????????????????????????? | | ?????? ?????????????????????????????????????????? | | ?????????????????????????????????????????????????? | | ?????????????????????????????????????????????????? | | ?????????????????????????????????????????????????? | | ?????????????????????????????????????????????????? | | ?????????????????????????????????????????????????? | | ?????????????????????????????????????????????????? | | ?????????????????????????????????????????????????? | | ?????????????????????????????????????????????????? | | ?????????????????????????????????????????????????? | | ?????????????????????????????????????????????????? | | ?????????????????????????????????????????????????? | | ?????????????????????????????????????????????????? | | ?????????????????????????????????????????????????? | +----------------------------------------------------+ Best States ------------- Heat Dissipation 76 Energy Generation 18 Energy Capacity 310 Matter Stores 500 Matter Capacity 500 Sight Range 18 Terrain Scan Range 16 Terrain Scan Density 10 Evasion (%) 40 Recoil Reduction 2 Offensive Hacking 10 Defensive Hacking 10 Item Schematics ----------------- None Robot Schematics ------------------ None Fabricated ------------ Nothing Repaired ---------- Nothing Studied --------- None Alien Tech Used ----------------- None Achievements -------------- None Challenges ------------ None RPGLIKE | -11 -10 -10 -10 -9 -8 -7 --------- Run | Yrd Mat Min Exi Min Mat Fac Levels Raised 16 | . 2 1 . 1 7 5 XP Earned 27839 | 3000 3700 950 350 1700 10132 8007 XP Spent 26970 | 2950 3050 1500 . 1500 9055 8915 Upgrades 62 | 5 7 2 . 3 15 30 Propulsion Slot 1 | 1 . . . . . . Weapon Slot 8 | 3 . 1 . . 3 1 Core Integrity 26 | . . . . . 4 22 Heat Dissipation 4 | 1 . . . . 3 . Matter Storage 4 | . . . . . 2 2 Mass Support 1 | . 1 . . . . . Inventory Capacity 3 | . 2 . . . . 1 Sight Range 2 | . . 1 . . 1 . Ranged Accuracy 5 | . 4 . . . 1 . Hack Attack % 2 | . . . . . . 2 Hack Defense % 2 | . . . . . . 2 KI Damage % 4 | . . . . 3 1 . Protomatter Created 2457 | . 109 44 . 93 966 1245 Integrity Restored 3517 | . 263 126 . 174 1614 1340 Core 3023 | . 239 68 . 134 1259 1323 Parts 494 | . 24 58 . 40 355 17 Protomatter Decayed 966 | . 9 47 . 15 502 393 Game ------ Seed InterdictionConceptComputer Manual? 0 Play Time 01:09:37 Cumulative 363.6 hours Start 2026.08.17 @ 06:47:57 End 2026.08.17 @ 07:54:52 Sessions 1 Manual Loads 0 Difficulty Rogue Special Mode Winter2019/RPGLIKE Game No. 99 Rogue 98 Adventurer 1 Explorer 0 Win Type - Total 35 Types 9/7/7/0/0/1/10/0/0/1 Lore% 65 Gallery% 72 Achievement% 60 Wizard Run 0 Options --------- Layout 0 ASCII 0 Keyboard 0 Movement Mouse Keybinds 0 Fullscreen 1 Font 24/Terminus Map View 76x50 Zoom Use 0% Tactical HUD 1 Map Filters NONE Filters NONE Steam 1 RUN: ce1d5c8d-80bd-4088-90cb-41e9b79b0461